Cogmind - Beta 10.2 @@@ ROGUE MODE // 2022.02.04 @ 00:42:36 Player: Meraxes Result: Destroyed by S-10 Pest with Light Assault Rifle Performance ------------- Evolutions (1) 500 Regions Visited (3) 600 Robots Destroyed (24) 120 Value Destroyed (621) 621 Prototype IDs (0) 0 Alien Tech Used (0) 0 Bonus (0) 0 TOTAL SCORE: 1841 Bonus ------- None Cogmind --------- Core Integrity 0/400 Matter 300/300 Energy 86/125 System Corruption 0% Temperature Cool (0) Movement Core (600) Ox11 Location -9/Storage Parts ------- > --- POWER (1) -------- Light Ion Engine > --- PROPULSION (3) --- (None) > --- UTILITY (3) ------ High-capacity Storage Unit Terrain Scan Processor > --- WEAPON (2) ------- (None) > --- INVENTORY (12) --- Small Storage Unit Peak State ------------ > --- POWER ------------ Ion Engine > --- PROPULSION ------- Aluminum Leg Aluminum Leg Aluminum Leg > --- UTILITY ---------- High-capacity Storage Unit Terrain Scan Processor > --- WEAPON ----------- Beam Rifle Heavy Assault Rifle > --- INVENTORY -------- Light Ion Engine Small Storage Unit EM Pulse Gun Beam Rifle Rocket Launcher [Rating: 11] Favorites ----------- Power Ion Engine Engine Ion Engine Propulsion Aluminum Leg Leg Aluminum Leg Utility Terrain Scan Processor Storage High-capacity Storage Unit Processor Terrain Scan Processor Weapon Light Assault Rifle Energy Gun Beam Rifle Ballistic Gun Light Assault Rifle Launcher Rocket Launcher Special Weapon Mining Laser Build | -11 -10 -9 -9 ------- Run | Scr Mat Mat Sto Slots Evolved 2 | . . 2 . Power . | . . . . Propulsion 1 | . . 1 . Utility 1 | . . 1 . Weapon . | . . . . Parts Attached 22 | 6 2 1 13 Power 3 | 1 . . 2 Engine 3 | 1 . . 2 Core . | . . . . Reactor . | . . . . Propulsion 5 | 2 . 1 2 Treads . | . . . . Leg 5 | 2 . 1 2 Wheel . | . . . . Hover . | . . . . Flight . | . . . . Utility 3 | 1 2 . . Device . | . . . . Storage 2 | 1 1 . . Processor 1 | . 1 . . Hackware . | . . . . Protection . | . . . . Artifact . | . . . . Weapon 11 | 2 . . 9 Energy Gun 6 | . . . 6 Energy Cannon . | . . . . Ballistic Gun 3 | 2 . . 1 Ballistic Cannon . | . . . . Launcher 1 | . . . 1 Special Weapon 1 | . . . 1 Impact Weapon . | . . . . Slashing Weapon . | . . . . Piercing Weapon . | . . . . Special Melee Weapon . | . . . . Unidentified Prototypes . | . . . . Parts Lost 16 | . . . 16 Power 2 | . . . 2 Propulsion 5 | . . . 5 Utility . | . . . . Weapon 9 | . . . 9 Highest Loss Streak 9 | . . . 9 Average Slot Usage (%) 78 | . 96 78 70 Engine 9 | . 14 11 6 Leg 23 | . 28 23 21 Storage 11 | . 14 11 11 Processor 10 | . 10 11 11 Energy Gun 5 | . . . 11 Ballistic Gun 15 | . 28 22 7 Naked Turns . | . . . . Heaviest Build 43 | 12 40 40 43 Greatest Support 30 | 20 20 30 30 Greatest Overweight (x) 11 | 1 1 1 11 Average Overweight (x) . | . . 1 1 Largest Inventory Capacity 12 | 6 12 12 12 Average Capacity 10 | 5 8 12 12 Most Carried 7 | 3 6 7 7 Average Carried 4 | 1 3 6 5 Final Capacity 12 | 6 12 12 12 Final Carried 7 | 2 6 7 1 Class Distribution -------------------- 90% | Mutant 9% | Scavenger-Mutant Dominant Class ---------------- Mutant | -10/Materials Mutant | -9/Materials Mutant | -9/Storage Resources | -11 -10 -9 -9 ----------- Run | Scr Mat Mat Sto Matter Collected 534 | 195 48 127 164 Remotely . | . . . . Salvage Created 747 | . 48 190 509 Parts 54 | . 3 12 39 Haulers Intercepted . | . . . . Recyclers Shooed . | . . . . Parts Field Recycled . | . . . . Retrieved Matter . | . . . . Parts Self-Destructed . | . . . . Prevented . | . . . . Kills | -11 -10 -9 -9 ------- Run | Scr Mat Mat Sto Combat Hostiles Destroyed 21 | . 3 4 14 Guns 18 | . 3 4 11 AOE 3 | . . . 3 Classes Destroyed 5 | . 1 2 2 Worker 1 | . . . 1 Watcher 2 | . . . 2 Swarmer 8 | . 3 . 5 Grunt 7 | . . 2 5 Sentry 6 | . . 2 4 Best Kill Streak 6 | . 3 4 6 Combat Bots Only 6 | . 3 4 6 Max Kills in Single Turn 2 | . 2 1 2 Gunslinging 1 | . 1 . 1 Exploded 2 | . . . 2 Melee . | . . . . Uniques/NPCs Destroyed . | . . . . Combat | -11 -10 -9 -9 -------- Run | Scr Mat Mat Sto Damage Taken 1710 | . 95 255 1360 Core 409 | . 6 75 328 Absorbed by Shields . | . . . . Core Remaining (%) 98 | 100 97 . . Volleys Fired 75 | . 4 16 55 Largest 2 | . 2 2 2 Hottest 112 | . 40 40 112 Shots Fired 124 | . 8 32 84 Gun 122 | . 8 32 82 Cannon . | . . . . Launcher 2 | . . . 2 Special . | . . . . Kinetic 71 | . 8 32 31 Thermal 47 | . . . 47 Explosive 2 | . . . 2 Electromagnetic 4 | . . . 4 Robot Hit Streak 11 | . 2 8 11 Robot Miss Streak 4 | . 2 2 4 Penetration Max . | . . . . Secondary Targets 4 | . 1 . 3 Max Gunslinging Chain 1 | . 1 . 1 Shots Hit Robots 87 | . 4 23 60 Core Hits 39 | . 3 8 28 Critical Hits 1 | . . 1 . Critical Kills . | . . . . Critical Parts Destroyed 1 | . . 1 . Melee Attacks . | . . . . Impact . | . . . . Slashing . | . . . . Piercing . | . . . . Sneak Attacks . | . . . . Combat Hostiles . | . . . . Follow-up Attacks . | . . . . Damage Inflicted 1564 | . 35 232 1297 Guns 1037 | . 35 232 770 Cannons . | . . . . Explosions 509 | . . . 509 Melee . | . . . . Ramming 18 | . . . 18 Kinetic 584 | . 35 232 317 Thermal 421 | . . . 421 Explosive 509 | . . . 509 Electromagnetic 32 | . . . 32 Impact . | . . . . Slashing . | . . . . Piercing . | . . . . Highest Corruption . | . . . . Average Corruption . | . . . . Corruption Purged . | . . . . Overload Shots . | . . . . Overflow Damage 14 | . . . 14 Projectiles . | . . . . Explosions 14 | . . . 14 Melee . | . . . . Knockbacks . | . . . . Impact . | . . . . Kinetic . | . . . . Secondary . | . . . . Self-Inflicted Damage 42 | . . . 42 Shots 2 | . . . 2 Rammed 3 | . . . 3 Targets Rammed 5 | . . . 5 Kicked 2 | . . . 2 Crushed . | . . . . Highest Temperature 283 | . . 6 283 Average Temperature 53 | . . 4 59 Received Heat Transfer 510 | . . 96 414 Effects 2 | . . . 2 Energy Bleed 1 | . . . 1 Interference 1 | . . . 1 Siege Activations . | . . . . Robots Corrupted . | . . . . Combat Hostiles . | . . . . Parts Fried . | . . . . Impact Corruptions . | . . . . Robots Melted . | . . . . Combat Hostiles . | . . . . Parts Melted 3 | . . . 3 Heat Transferred 1073 | . . . 1073 Parts Sabotaged . | . . . . Parts Stolen . | . . . . Parts Stripped . | . . . . Power Chain Reactions . | . . . . Missiles Intercepted . | . . . . Alert | -11 -10 -9 -9 ------- Run | Scr Mat Mat Sto Peak Influence 394 | . 70 144 394 Initial 60 | . . 29 60 Average 108 | . 48 67 177 Maximum Alert Level 1 | . . . 1 Low Security (%) 81 | 100 100 100 62 Level 1 18 | . . . 37 Level 2 . | . . . . Level 3 . | . . . . Level 4 . | . . . . Level 5 . | . . . . High Security . | . . . . Max Security . | . . . . Squads Dispatched 6 | . . . 6 Investigation . | . . . . Extermination . | . . . . Reinforcement 3 | . . . 3 Assault . | . . . . Garrison 3 | . . . 3 Intercept . | . . . . Construction Impeded . | . . . . Haulers Reinforced . | . . . . Stealth | -11 -10 -9 -9 --------- Run | Scr Mat Mat Sto Distress Signals 1 | . . . 1 Communications Jammed . | . . . . Distress Signals . | . . . . Times Spotted 35 | . 3 5 27 Peak Tracking Total 10 | . 3 4 10 Tactical Retreats 1 | . . 1 . Traps | -11 -10 -9 -9 ------- Run | Scr Mat Mat Sto Traps Triggered . | . . . . Indirectly . | . . . . Trap Hack Attempts . | . . . . Triggered . | . . . . Disarmed . | . . . . Reprogrammed . | . . . . Reused . | . . . . Traps Extracted . | . . . . Installed . | . . . . Triggered . | . . . . Machines | -11 -10 -9 -9 ---------- Run | Scr Mat Mat Sto Machines Disabled . | . . . . Max in Single Turn . | . . . . Machines Sabotaged . | . . . . Garrisons Compromised . | . . . . Overloaded Fab Kills . | . . . . Fab Network Shutdowns . | . . . . Hacking | -11 -10 -9 -9 --------- Run | Scr Mat Mat Sto Machines Accessed 1 | . . 1 . Terminals 1 | . . 1 . Fabricators . | . . . . Repair Stations . | . . . . Recycling Units . | . . . . Scanalyzers . | . . . . Garrison Access . | . . . . Total Hacks 3 | . . 3 . Successful . | . . . . Failed 3 | . . 3 . Catastrophic 1 | . . 1 . Database Lockouts . | . . . . Manual . | . . . . Terminals 3 | . . 3 . Fabricators . | . . . . Repair Stations . | . . . . Recycling Units . | . . . . Scanalyzers . | . . . . Garrison Access . | . . . . Terminal Hacks . | . . . . Fabricator Hacks . | . . . . Repair Station Hacks . | . . . . Recycling Unit Hacks . | . . . . Scanalyzer . | . . . . Garrison Access Hacks . | . . . . Unauthorized Hacks . | . . . . Terminals . | . . . . Fabricators . | . . . . Repair Stations . | . . . . Recycling Units . | . . . . Scanalyzers . | . . . . Garrison Access . | . . . . Data Cores Recovered . | . . . . Used . | . . . . Hacking Detections 1 | . . 1 . Full Trace Events . | . . . . Feedback Events . | . . . . Feedback Blocked . | . . . . Robot Schematics Acquired . | . . . . Robots Built . | . . . . Matter . | . . . . Time . | . . . . Total Robot Build Rating . | . . . . Part Schematics Acquired . | . . . . Parts Built . | . . . . Matter . | . . . . Time . | . . . . Total Part Build Rating . | . . . . Parts Repaired . | . . . . Time . | . . . . Parts Recycled . | . . . . Recycled Matter . | . . . . Retrieved Matter . | . . . . Retrieved Components . | . . . . Parts Scanalyzed . | . . . . Part Schematics Acquired . | . . . . Parts Damaged . | . . . . Bothacking | -11 -10 -9 -9 ------------ Run | Scr Mat Mat Sto Used RIF Installer . | . . . . Robots Hacked . | . . . . Non-combat . | . . . . Combat . | . . . . Robot Hacks Applied . | . . . . Relay Couplers Released . | . . . . Robots Rewired . | . . . . Allies Hacked . | . . . . Hacks Repelled . | . . . . Allies | -11 -10 -9 -9 -------- Run | Scr Mat Mat Sto Total Allies . | . . . . Largest Group . | . . . . Highest-Rated Group . | . . . . Highest-Rated Ally . | . . . . Total Orders . | . . . . Ally Attacks . | . . . . Total Damage . | . . . . Kills . | . . . . Allies Corrupted . | . . . . Allies Melted . | . . . . Intel | -11 -10 -9 -9 ------- Run | Scr Mat Mat Sto Robot Analysis Total . | . . . . Derelict Logs Recovered . | . . . . Drone Launches . | . . . . Drone Recoveries . | . . . . Exploration | -11 -10 -9 -9 ------------- Run | Scr Mat Mat Sto Turns Passed 727 | 73 149 160 345 Spaces Moved 339 | 55 101 76 107 Core 15 | 14 . . 1 Treads . | . . . . Legs 324 | 41 101 76 106 Wheels . | . . . . Hover . | . . . . Flight . | . . . . Fastest Speed 50 | 50 120 150 150 Average Speed 144 | 104 131 150 171 Slowest Speed 600 | 120 150 150 600 Overloaded Moves . | . . . . Propulsion Burnouts . | . . . . Robots Hopped . | . . . . Cave-ins Triggered . | . . . . Exploration Rate (%) 15 | 3 23 9 25 Regions Visited 3 Branch Regions 1 Pre-discovered Areas . | . . . . Known Exits Taken . | . . . . Unknown Exits Taken 3 | 1 1 1 . Scrap Searched . | . . . . Spaces Dug 21 | . . . 21 Terrain Destroyed 21 | . . . 21 Melee . | . . . . Projectile . | . . . . AOE 21 | . . . 21 Terrain Rammed . | . . . . Walls Destroyed . | . . . . Machines Disabled . | . . . . Actions | -11 -10 -9 -9 --------- Run | Scr Mat Mat Sto Total 455 | 68 109 93 185 Wait 9 | 5 . . 4 Move 336 | 54 100 75 107 Hop . | . . . . Pick Up 8 | 3 3 1 1 Fast Attach 11 | 5 1 1 4 Attach 8 | 1 . . 7 Detach . | . . . . Swap 3 | . 1 . 2 Drop . | . . . . Fire 75 | . 4 16 55 Melee . | . . . . Ram . | . . . . Kick 5 | . . . 5 Crush . | . . . . Escape Stasis . | . . . . Rewire . | . . . . Trap . | . . . . Miscellaneous . | . . . . Route ------- -11/Scrapyard -10/Materials -9/Materials -9/Storage History --------- Turn | Location | Event 25 | -11/Scrapyard | Discovered new exit (range 14) 74 | -11/Scrapyard | Entered Materials 213 | -10/Materials | Discovered new exit (range 7) 223 | -10/Materials | Entered another Materials area 223 | -9/Materials | Evolved 2 slots: Propulsion x1, Utility x1 318 | -9/Materials | Build established: Mutant 341 | -9/Materials | Discovered new exit (range 15) 383 | -9/Materials | Entered Storage 525 | -9/Storage | Garrison activated, responded to threat 574 | -9/Storage | Lost 3 parts (1p2w) 685 | -9/Storage | Core integrity fell below 50% 721 | -9/Storage | Core integrity fell below 20% 728 | -9/Storage | Destroyed by S-10 Pest with Light Assault Rifle Last Messages --------------- 00716_ R-06 Scavenger destroyed. 00718_ U-05 Engineer lays Concrete. 00719_ Rocket Launcher destroyed. 00720_ U-05 Engineer lays Concrete. 00721_ M-13 Machinist fits Backup Power I on S-10 Pest. 00721_ R-06 Scavenger collects Flight Unit. 00721_ U-05 Engineer lays Concrete. 00723_ Beam Rifle destroyed. 00723_ K-01 Serf collects debris. 00724_ Beam Rifle destroyed. 00724_ U-05 Engineer lays Concrete. 00724_ R-06 Scavenger collects Lgt. Ion Engine. 00724_ U-05 Engineer builds a Wall. 00725_ U-05 Engineer lays Concrete. 00725_ U-05 Engineer builds a Wall. 00725_ Acquired 37 matter. 00726_ U-05 Engineer lays Concrete. 00727_ Aluminum Leg destroyed. 00727_ U-05 Engineer lays Concrete. 00728_ R-06 Scavenger collects Ion Engine. Map ----- +----------------------------------------------------+ | ?????????????????????????????????????????????????? | | ?????????????????????????????????????????????????? | | ?????????????????????????????????????????????????? | | ?????????????????????????????????????????????????? | | ?????????????????????????????????????????????????? | | ?????????????????????????????????????????????????? | | ?????????????????????????????????????????????????? | | ?????????????????????????????????????????????????? | | ?????????????????????????????????????????????????? | | ?????????????????????????????????????????????????? | | ?????????????????????????????????????????????????? | | ?????????????????????????????????????????????????? | | ?????????????????????????????????????????????????? | | ?????????????????????????????????????????????????? | | ?????????????????????????????????????????????????? | | ?????????????????????????????????????????????????? | | ?????????????????????????????????????????????????? | | ?????????????????????????????????????????????????? | | ????????????#????????????????????????????????????? | | ????????????# ?????????????#####+#########+#+###?? | | ????????????# ????????????? #?? | | ????????????# ?????????### ? ^ ^ ##? | | ???????????## ??????#### ???? ^ "#? | | ??????? """# ????## ##????# ^ ^^ T#? | | ????? / T"=###### g ##???# % ^ "" "#? | | ???????????# "%%%a%uuukY@% ###### ! T" ### | | ???????????# %##### s% u ! "" | | ???????????## #????# Ysru u a | | ????????????# ?????# Ym | | ????????????# ??????### ####o#########/####### | | ????????????#?????????######## % #?? ????? | | ?????????????????????????????# """ ! #??? ??? | | ?????????????????????????????# "R % #???? ?? | | ?????????????????????????????# """ #?????"""#? | | ?????????????????????????????# """ """ #?????"""#? | | ?????????????????????????????# """ #??????""#? | | ?????????????????????????????# """ #?????????? | | ?????????????????????????????# #?????????? | | ?????????????????????????????###### ####?????????? | | ??????????????????????????????????###????????????? | | ?????????????????????????????????????????????????? | | ?????????????????????????????????????????????????? | | ?????????????????????????????????????????????????? | | ?????????????????????????????????????????????????? | | ?????????????????????????????????????????????????? | | ?????????????????????????????????????????????????? | | ?????????????????????????????????????????????????? | | ?????????????????????????????????????????????????? | | ?????????????????????????????????????????????????? | | ?????????????????????????????????????????????????? | +----------------------------------------------------+ Best States ------------- Heat Dissipation 28 Energy Generation 10 Energy Capacity 250 Matter Stores 300 Matter Capacity 300 Sight Range 16 Terrain Scan Density 85 Evasion (%) 40 Item Schematics ----------------- None Robot Schematics ------------------ None Fabricated ------------ Nothing Alien Tech Used ----------------- None Achievements -------------- Troublemaker Challenges ------------ None Game ------ Seed ShockFieldProtection Manual? 0 Play Time 00:28:50 Cumulative 2.3 hours Start 2022.02.03 @ 21:23:39 End 2022.02.04 @ 00:42:36 Sessions 2 Manual Loads 0 Difficulty Rogue Special Mode None Game No. 6 Rogue 6 Adventurer 0 Explorer 0 Win Type - Total 0 Types 0/0/0/0/0/0/0/0/0 Lore% 0 Gallery% 4 Achievement% 3 Wizard Run 0 Options --------- ASCII 0 Keyboard 0 Movement Vi Keybinds 0 Fullscreen 1 Font 28/SmallcapsGlow Map View 67x55 Tactical HUD 1 Map Filters NONE Filters NONE Steam 1 RUN: 3a97b676-2f7a-47a9-8dea-4ab1a40aa9e1